[Event "Titled Tuesday Blitz April 12 Early 2022"]
[White "Korchmar, Vasiliy"]
[Black "Xiong, Jeffery"]
[WhiteFideId "24131750"]
[BlackFideId "2047640"]
[WhiteElo "2370"]
[BlackElo "2727"]
[Result "1/2-1/2"]
[Round "03"]
[TimeControl "180+1"]
[Date "2022.04.12"]
[WhiteClock "0:00:13"]
[BlackClock "0:00:19"]

1. d4 {[%clk 0:03:00]}  d5 {[%clk 0:02:56]} 2. Bf4 {[%clk 0:03:00]}  c5 {[%clk 0:02:55]} 3. e3 {[%clk 0:03:01]}  Nc6 {[%clk 0:02:55]} 4. Nf3 {[%clk 0:03:01]}  Bg4 {[%clk 0:02:54]} 5. Nbd2 {[%clk 0:03:01]}  e6 {[%clk 0:02:52]} 6. c3 {[%clk 0:03:00]}  cxd4 {[%clk 0:02:48]} 7. exd4 {[%clk 0:02:59]}  Bd6 {[%clk 0:02:49]} 8. Bg3 {[%clk 0:02:47]}  Nge7 {[%clk 0:02:47]} 9. Qb3 {[%clk 0:02:47]}  O-O {[%clk 0:02:44]} 10. Bd3 {[%clk 0:02:45]}  Rb8 {[%clk 0:02:41]} 11. Ne5 {[%clk 0:02:21]}  Nxe5 {[%clk 0:02:25]} 12. dxe5 {[%clk 0:02:22]}  Bc7 {[%clk 0:02:25]} 13. Qa4 {[%clk 0:01:50]}  Bf5 {[%clk 0:02:20]} 14. Bxf5 {[%clk 0:01:41]}  Nxf5 {[%clk 0:02:21]} 15. Qxa7 {[%clk 0:01:42]}  Nxg3 {[%clk 0:01:55]} 16. hxg3 {[%clk 0:01:42]}  Bxe5 {[%clk 0:01:55]} 17. Qe3 {[%clk 0:01:37]}  Bf6 {[%clk 0:01:54]} 18. O-O {[%clk 0:01:34]}  b5 {[%clk 0:01:47]} 19. a3 {[%clk 0:01:30]}  d4 {[%clk 0:01:47]} 20. cxd4 {[%clk 0:01:28]}  Bxd4 {[%clk 0:01:48]} 21. Qb3 {[%clk 0:01:23]}  Qf6 {[%clk 0:01:34]} 22. Rab1 {[%clk 0:00:49]}  Rfd8 {[%clk 0:01:33]} 23. Nf3 {[%clk 0:00:41]}  e5 {[%clk 0:01:16]} 24. Nxd4 {[%clk 0:00:34]}  exd4 {[%clk 0:01:17]} 25. Rbd1 {[%clk 0:00:33]}  h5 {[%clk 0:00:46]} 26. Rd3 {[%clk 0:00:33]}  Qe5 {[%clk 0:00:23]} 27. Rfd1 {[%clk 0:00:32]}  Rd7 {[%clk 0:00:22]} 28. Qb4 {[%clk 0:00:26]}  Rbd8 {[%clk 0:00:22]} 29. b3 {[%clk 0:00:23]}  g6 {[%clk 0:00:19]} 30. a4 {[%clk 0:00:20]}  bxa4 {[%clk 0:00:20]} 31. bxa4 {[%clk 0:00:21]}  Rd5 {[%clk 0:00:20]} 32. a5 {[%clk 0:00:18]}  Rb5 {[%clk 0:00:20]} 33. Qd2 {[%clk 0:00:17]}  Rxa5 {[%clk 0:00:18]} 34. Rxd4 {[%clk 0:00:17]}  Rxd4 {[%clk 0:00:16]} 35. Qxd4 {[%clk 0:00:17]}  Qxd4 {[%clk 0:00:16]} 36. Rxd4 {[%clk 0:00:17]}  Ra1+ {[%clk 0:00:17]} 37. Kh2 {[%clk 0:00:17]}  Rf1 {[%clk 0:00:18]} 38. f3 {[%clk 0:00:15]}  Kg7 {[%clk 0:00:18]} 39. Rb4 {[%clk 0:00:15]}  Kf6 {[%clk 0:00:18]} 40. Rb6+ {[%clk 0:00:15]}  Kg7 {[%clk 0:00:19]} 41. Ra6 {[%clk 0:00:14]}  Rb1 {[%clk 0:00:18]} 42. Ra7 {[%clk 0:00:13]}  Rc1 {[%clk 0:00:18]} 43. Rb7 {[%clk 0:00:13]}  Ra1 {[%clk 0:00:18]} 44. Rc7 {[%clk 0:00:14]}  Kf6 {[%clk 0:00:18]} 45. Rc6+ {[%clk 0:00:13]}  Kg7 {[%clk 0:00:18]} 46. Rc7 {[%clk 0:00:13]}  Kf6 {[%clk 0:00:19]} 47. Rc6+ {[%clk 0:00:13]}  Kg7 {[%clk 0:00:19]} 48. Rc7 {[%clk 0:00:13]} 1/2-1/2


[Site "https://www.chess.com"]

[Event "Titled Tuesday Blitz April 12 Early 2022"]
[White "Kostina, Nadezhda"]
[Black "Vusatiuk, Vladimir"]
[WhiteFideId "4195876"]
[BlackFideId "14118610"]
[WhiteElo "1982"]
[BlackElo "2157"]
[Result "0-1"]
[Round "03"]
[TimeControl "180+1"]
[Date "2022.04.13"]
[WhiteClock "0:00:02"]
[BlackClock "0:00:06"]

1. e4 {[%clk 0:03:00]}  Nc6 {[%clk 0:02:58]} 2. d4 {[%clk 0:02:58]}  d5 {[%clk 0:02:51]} 3. exd5 {[%clk 0:02:44]}  Qxd5 {[%clk 0:02:49]} 4. Be3 {[%clk 0:02:43]}  e5 {[%clk 0:02:43]} 5. Qf3 {[%clk 0:02:27]}  Qa5+ {[%clk 0:02:20]} 6. Bd2 {[%clk 0:02:22]}  Qb6 {[%clk 0:02:20]} 7. d5 {[%clk 0:02:13]}  Qxb2 {[%clk 0:02:09]} 8. dxc6 {[%clk 0:02:01]}  Qxa1 {[%clk 0:02:06]} 9. Qb3 {[%clk 0:01:57]}  Qd4 {[%clk 0:01:36]} 10. cxb7 {[%clk 0:01:54]}  Qe4+ {[%clk 0:01:32]} 11. Be2 {[%clk 0:01:44]}  Qxb7 {[%clk 0:01:23]} 12. Bb5+ {[%clk 0:01:04]}  c6 {[%clk 0:01:19]} 13. Ba4 {[%clk 0:01:03]}  Qxb3 {[%clk 0:01:07]} 14. Bxc6+ {[%clk 0:01:03]}  Bd7 {[%clk 0:01:07]} 15. Bxd7+ {[%clk 0:01:03]}  Kxd7 {[%clk 0:01:08]} 16. axb3 {[%clk 0:01:02]}  Bc5 {[%clk 0:01:04]} 17. Nf3 {[%clk 0:00:58]}  f6 {[%clk 0:00:50]} 18. Ke2 {[%clk 0:00:57]}  Ne7 {[%clk 0:00:40]} 19. b4 {[%clk 0:00:56]}  Bb6 {[%clk 0:00:32]} 20. c4 {[%clk 0:00:56]}  Bc7 {[%clk 0:00:27]} 21. Be3 {[%clk 0:00:52]}  Rhb8 {[%clk 0:00:22]} 22. b5 {[%clk 0:00:44]}  a6 {[%clk 0:00:21]} 23. Nc3 {[%clk 0:00:39]}  axb5 {[%clk 0:00:21]} 24. Nxb5 {[%clk 0:00:36]}  Ra2+ {[%clk 0:00:20]} 25. Kd3 {[%clk 0:00:31]}  Bb6 {[%clk 0:00:16]} 26. c5 {[%clk 0:00:22]}  Bxc5 {[%clk 0:00:16]} 27. Nc3 {[%clk 0:00:20]}  Bxe3 {[%clk 0:00:16]} 28. Nxa2 {[%clk 0:00:19]}  Bxf2 {[%clk 0:00:16]} 29. Rd1 {[%clk 0:00:17]}  Ke6 {[%clk 0:00:15]} 30. Ke2 {[%clk 0:00:17]}  Rb2+ {[%clk 0:00:13]} 31. Rd2 {[%clk 0:00:16]}  Rxd2+ {[%clk 0:00:12]} 32. Nxd2 {[%clk 0:00:17]}  Bg1 {[%clk 0:00:12]} 33. h3 {[%clk 0:00:16]}  f5 {[%clk 0:00:12]} 34. Nc3 {[%clk 0:00:16]}  Nd5 {[%clk 0:00:12]} 35. Nb5 {[%clk 0:00:15]}  Nf4+ {[%clk 0:00:12]} 36. Kf1 {[%clk 0:00:15]}  Bc5 {[%clk 0:00:13]} 37. Nf3 {[%clk 0:00:15]}  h6 {[%clk 0:00:11]} 38. Nc7+ {[%clk 0:00:14]}  Kd7 {[%clk 0:00:09]} 39. Nb5 {[%clk 0:00:14]}  e4 {[%clk 0:00:07]} 40. Ne5+ {[%clk 0:00:13]}  Ke6 {[%clk 0:00:07]} 41. Nc4 {[%clk 0:00:12]}  Nd3 {[%clk 0:00:08]} 42. Ke2 {[%clk 0:00:11]}  Ne5 {[%clk 0:00:08]} 43. Ne3 {[%clk 0:00:10]}  f4 {[%clk 0:00:07]} 44. Ng4 {[%clk 0:00:09]}  Nxg4 {[%clk 0:00:07]} 45. hxg4 {[%clk 0:00:09]}  Kf6 {[%clk 0:00:04]} 46. Nc3 {[%clk 0:00:08]}  Ke5 {[%clk 0:00:04]} 47. Na4 {[%clk 0:00:08]}  Bd4 {[%clk 0:00:04]} 48. Kf1 {[%clk 0:00:07]}  g6 {[%clk 0:00:04]} 49. Ke2 {[%clk 0:00:06]}  Kf6 {[%clk 0:00:05]} 50. Kf1 {[%clk 0:00:02]}  Kg5 {[%clk 0:00:06]} 51. Ke2 {[%clk 0:00:02]}  Kxg4 {[%clk 0:00:06]} 0-1


[Site "https://www.chess.com"]

[Event "Titled Tuesday Blitz April 12 Early 2022"]
[White "Kostiukov, Alexandr"]
[Black "Baches Garcia, Guillermo"]
[WhiteFideId "14108100"]
[BlackFideId "2209764"]
[WhiteElo "2202"]
[BlackElo "2501"]
[Result "1-0"]
[Round "03"]
[TimeControl "180+1"]
[Date "2022.04.13"]
[WhiteClock "0:01:04"]
[BlackClock "0:00:09"]

1. g3 {[%clk 0:03:00]}  e5 {[%clk 0:02:58]} 2. Bg2 {[%clk 0:03:01]}  h5 {[%clk 0:02:58]} 3. h4 {[%clk 0:02:58]}  d5 {[%clk 0:02:58]} 4. c4 {[%clk 0:02:58]}  d4 {[%clk 0:02:57]} 5. d3 {[%clk 0:02:58]}  g6 {[%clk 0:02:55]} 6. Nf3 {[%clk 0:02:58]}  Bg7 {[%clk 0:02:55]} 7. O-O {[%clk 0:02:58]}  Ne7 {[%clk 0:02:54]} 8. e3 {[%clk 0:02:56]}  c5 {[%clk 0:02:49]} 9. exd4 {[%clk 0:02:55]}  cxd4 {[%clk 0:02:49]} 10. b4 {[%clk 0:02:53]}  O-O {[%clk 0:02:46]} 11. Re1 {[%clk 0:02:47]}  Bg4 {[%clk 0:02:45]} 12. Qb3 {[%clk 0:02:44]}  Nd7 {[%clk 0:02:37]} 13. Nbd2 {[%clk 0:02:35]}  a5 {[%clk 0:02:36]} 14. bxa5 {[%clk 0:02:30]}  Nc5 {[%clk 0:02:28]} 15. Qc2 {[%clk 0:02:23]}  Nc6 {[%clk 0:02:16]} 16. Ba3 {[%clk 0:02:16]}  Qxa5 {[%clk 0:02:13]} 17. Bxc5 {[%clk 0:02:13]}  Qxc5 {[%clk 0:02:12]} 18. Rab1 {[%clk 0:02:07]}  Nb4 {[%clk 0:01:58]} 19. Qb3 {[%clk 0:02:04]}  Nxa2 {[%clk 0:01:53]} 20. Qxb7 {[%clk 0:01:56]}  Nc3 {[%clk 0:01:47]} 21. Qb6 {[%clk 0:01:45]}  Qxb6 {[%clk 0:01:23]} 22. Rxb6 {[%clk 0:01:44]}  Ra2 {[%clk 0:01:14]} 23. c5 {[%clk 0:01:36]}  Bh6 {[%clk 0:01:05]} 24. Nc4 {[%clk 0:01:34]}  e4 {[%clk 0:00:52]} 25. dxe4 {[%clk 0:01:30]}  d3 {[%clk 0:00:52]} 26. Rd6 {[%clk 0:01:24]}  Bxf3 {[%clk 0:00:22]} 27. Bxf3 {[%clk 0:01:21]}  d2 {[%clk 0:00:23]} 28. Rf1 {[%clk 0:01:19]}  Rb8 {[%clk 0:00:20]} 29. c6 {[%clk 0:01:15]}  Nb5 {[%clk 0:00:17]} 30. Rd7 {[%clk 0:01:09]}  Rc8 {[%clk 0:00:16]} 31. e5 {[%clk 0:01:09]}  Rc2 {[%clk 0:00:14]} 32. Nd6 {[%clk 0:01:08]}  Rc7 {[%clk 0:00:13]} 33. Nxf7 {[%clk 0:01:07]}  Rc1 {[%clk 0:00:10]} 34. Nxh6+ {[%clk 0:01:07]}  Kf8 {[%clk 0:00:11]} 35. Bd1 {[%clk 0:01:06]}  R7xc6 {[%clk 0:00:09]} 36. Rxd2 {[%clk 0:01:04]} 1-0


[Site "https://www.chess.com"]

[Event "Titled Tuesday Blitz April 12 Early 2022"]
[White "Kouskoutis, Georgios-Alexandros"]
[Black "Tsyhanchuk, Stanislav"]
[WhiteFideId "4234049"]
[BlackFideId "13505130"]
[WhiteElo "2130"]
[BlackElo "2078"]
[Result "0-1"]
[Round "03"]
[TimeControl "180+1"]
[Date "2022.04.13"]
[WhiteClock "0:00:05"]
[BlackClock "0:00:17"]

1. c4 {[%clk 0:03:00]}  Nf6 {[%clk 0:02:59]} 2. g3 {[%clk 0:03:01]}  h5 {[%clk 0:02:59]} 3. h3 {[%clk 0:03:00]}  e5 {[%clk 0:02:57]} 4. Bg2 {[%clk 0:03:00]}  Nc6 {[%clk 0:02:56]} 5. Nc3 {[%clk 0:02:59]}  h4 {[%clk 0:02:52]} 6. g4 {[%clk 0:02:59]}  d6 {[%clk 0:02:48]} 7. d3 {[%clk 0:02:56]}  Nd7 {[%clk 0:02:42]} 8. Rb1 {[%clk 0:02:42]}  a5 {[%clk 0:02:35]} 9. a3 {[%clk 0:02:41]}  Nc5 {[%clk 0:02:16]} 10. b4 {[%clk 0:02:41]}  axb4 {[%clk 0:02:17]} 11. axb4 {[%clk 0:02:42]}  Ne6 {[%clk 0:02:17]} 12. b5 {[%clk 0:02:41]}  Na5 {[%clk 0:02:09]} 13. Ra1 {[%clk 0:02:25]}  Bd7 {[%clk 0:02:00]} 14. Nf3 {[%clk 0:02:05]}  c6 {[%clk 0:01:46]} 15. bxc6 {[%clk 0:01:52]}  bxc6 {[%clk 0:01:44]} 16. O-O {[%clk 0:01:52]}  Be7 {[%clk 0:01:42]} 17. Ba3 {[%clk 0:01:20]}  Nb7 {[%clk 0:01:37]} 18. Qb3 {[%clk 0:01:13]}  Nbc5 {[%clk 0:01:37]} 19. Qc2 {[%clk 0:01:08]}  O-O {[%clk 0:01:32]} 20. e3 {[%clk 0:00:59]}  Rb8 {[%clk 0:01:25]} 21. d4 {[%clk 0:00:43]}  exd4 {[%clk 0:01:25]} 22. Nxd4 {[%clk 0:00:41]}  Nxd4 {[%clk 0:01:21]} 23. exd4 {[%clk 0:00:42]}  Ne6 {[%clk 0:01:22]} 24. Rfd1 {[%clk 0:00:24]}  Nf4 {[%clk 0:01:17]} 25. d5 {[%clk 0:00:15]}  c5 {[%clk 0:01:15]} 26. Rdb1 {[%clk 0:00:10]}  Rxb1+ {[%clk 0:01:11]} 27. Rxb1 {[%clk 0:00:11]}  Bf6 {[%clk 0:01:11]} 28. Bc1 {[%clk 0:00:09]}  Be5 {[%clk 0:01:01]} 29. Bxf4 {[%clk 0:00:04]}  Bxf4 {[%clk 0:01:02]} 30. Be4 {[%clk 0:00:04]}  Be5 {[%clk 0:01:00]} 31. Rb7 {[%clk 0:00:03]}  Bc8 {[%clk 0:00:59]} 32. Rb8 {[%clk 0:00:03]}  Qa5 {[%clk 0:00:48]} 33. Bf5 {[%clk 0:00:03]}  Bxf5 {[%clk 0:00:44]} 34. Rxf8+ {[%clk 0:00:03]}  Kxf8 {[%clk 0:00:45]} 35. Qxf5 {[%clk 0:00:02]}  Qxc3 {[%clk 0:00:39]} 36. Qc8+ {[%clk 0:00:03]}  Ke7 {[%clk 0:00:39]} 37. Qc7+ {[%clk 0:00:03]}  Kf6 {[%clk 0:00:40]} 38. Qd8+ {[%clk 0:00:03]}  Kg6 {[%clk 0:00:39]} 39. Qxh4 {[%clk 0:00:03]}  Qc1+ {[%clk 0:00:34]} 40. Kg2 {[%clk 0:00:04]}  Qh6 {[%clk 0:00:32]} 41. Qd8 {[%clk 0:00:03]}  Qf4 {[%clk 0:00:26]} 42. Qh4 {[%clk 0:00:04]}  Qg5 {[%clk 0:00:19]} 43. Qh8 {[%clk 0:00:04]}  f5 {[%clk 0:00:18]} 44. Qe8+ {[%clk 0:00:05]}  Kh7 {[%clk 0:00:18]} 45. Qe6 {[%clk 0:00:04]}  fxg4 {[%clk 0:00:18]} 46. hxg4 {[%clk 0:00:05]}  Qh6 {[%clk 0:00:17]} 47. Qf5+ {[%clk 0:00:04]}  Qg6 {[%clk 0:00:18]} 48. Qf3 {[%clk 0:00:04]}  Kg8 {[%clk 0:00:17]} 49. Kh3 {[%clk 0:00:04]}  Qh6+ {[%clk 0:00:17]} 50. Kg2 {[%clk 0:00:05]}  Qh2+ {[%clk 0:00:17]} 51. Kf1 {[%clk 0:00:06]}  Qf4 {[%clk 0:00:18]} 52. Qxf4 {[%clk 0:00:04]}  Bxf4 {[%clk 0:00:18]} 53. Ke2 {[%clk 0:00:05]}  Kf7 {[%clk 0:00:19]} 54. Kd3 {[%clk 0:00:06]}  Kf6 {[%clk 0:00:18]} 55. Ke4 {[%clk 0:00:07]}  g5 {[%clk 0:00:18]} 56. f3 {[%clk 0:00:06]}  Bg3 {[%clk 0:00:17]} 57. Kd3 {[%clk 0:00:05]}  Ke5 {[%clk 0:00:18]} 58. Ke3 {[%clk 0:00:06]}  Bh2 {[%clk 0:00:17]} 59. Kd3 {[%clk 0:00:05]}  Kf4 {[%clk 0:00:17]} 0-1


[Site "https://www.chess.com"]

[Event "Titled Tuesday Blitz April 12 Early 2022"]
[White "Lamaze, Simon"]
[Black "Martinovici, Ilia"]
[WhiteFideId "36069264"]
[BlackFideId "13907034"]
[WhiteElo "1999"]
[BlackElo "2282"]
[Result "0-1"]
[Round "03"]
[TimeControl "180+1"]
[Date "2022.04.13"]
[WhiteClock "0:00:15"]
[BlackClock "0:00:16"]

1. d4 {[%clk 0:03:00]}  d5 {[%clk 0:02:59]} 2. c4 {[%clk 0:03:01]}  e6 {[%clk 0:03:00]} 3. Nf3 {[%clk 0:03:01]}  Nf6 {[%clk 0:03:00]} 4. g3 {[%clk 0:03:01]}  Bb4+ {[%clk 0:02:59]} 5. Bd2 {[%clk 0:03:01]}  Be7 {[%clk 0:02:58]} 6. Bg2 {[%clk 0:03:02]}  O-O {[%clk 0:02:58]} 7. O-O {[%clk 0:03:02]}  c6 {[%clk 0:02:59]} 8. Qc2 {[%clk 0:03:03]}  b6 {[%clk 0:02:58]} 9. Bf4 {[%clk 0:03:03]}  Ba6 {[%clk 0:02:57]} 10. Nbd2 {[%clk 0:03:03]}  Nbd7 {[%clk 0:02:54]} 11. Rac1 {[%clk 0:02:59]}  Qc8 {[%clk 0:02:48]} 12. e4 {[%clk 0:02:52]}  dxe4 {[%clk 0:02:48]} 13. Nxe4 {[%clk 0:02:52]}  Nxe4 {[%clk 0:02:48]} 14. Qxe4 {[%clk 0:02:53]}  Nf6 {[%clk 0:02:49]} 15. Qe2 {[%clk 0:02:50]}  c5 {[%clk 0:02:50]} 16. Ne5 {[%clk 0:02:48]}  Bb7 {[%clk 0:02:49]} 17. Rfd1 {[%clk 0:02:45]}  Bxg2 {[%clk 0:02:48]} 18. Kxg2 {[%clk 0:02:44]}  Qb7+ {[%clk 0:02:47]} 19. Qf3 {[%clk 0:02:44]}  Qxf3+ {[%clk 0:02:47]} 20. Kxf3 {[%clk 0:02:45]}  Rac8 {[%clk 0:02:44]} 21. dxc5 {[%clk 0:02:44]}  Bxc5 {[%clk 0:02:45]} 22. a3 {[%clk 0:02:40]}  Rfd8 {[%clk 0:02:44]} 23. b4 {[%clk 0:02:39]}  Bd4 {[%clk 0:02:37]} 24. b5 {[%clk 0:02:22]}  Bxe5 {[%clk 0:01:52]} 25. Bxe5 {[%clk 0:02:21]}  Nd7 {[%clk 0:01:52]} 26. Bd6 {[%clk 0:02:12]}  f6 {[%clk 0:01:50]} 27. Bb4 {[%clk 0:01:40]}  Ne5+ {[%clk 0:01:41]} 28. Ke2 {[%clk 0:01:39]}  Rxd1 {[%clk 0:01:41]} 29. Rxd1 {[%clk 0:01:40]}  Rxc4 {[%clk 0:01:27]} 30. Rd8+ {[%clk 0:01:39]}  Kf7 {[%clk 0:01:27]} 31. Ra8 {[%clk 0:01:37]}  Rc7 {[%clk 0:01:23]} 32. f4 {[%clk 0:01:13]}  Nc4 {[%clk 0:01:18]} 33. Kd3 {[%clk 0:01:13]}  f5 {[%clk 0:01:10]} 34. Rf8+ {[%clk 0:01:07]}  Kg6 {[%clk 0:01:09]} 35. Kd4 {[%clk 0:01:08]}  h6 {[%clk 0:01:01]} 36. h3 {[%clk 0:00:59]}  h5 {[%clk 0:00:57]} 37. Rh8 {[%clk 0:00:46]}  Nb2 {[%clk 0:00:52]} 38. Ke5 {[%clk 0:00:20]}  Nd3+ {[%clk 0:00:49]} 39. Kd6 {[%clk 0:00:20]}  Rc4 {[%clk 0:00:42]} 40. Re8 {[%clk 0:00:17]}  Nxb4 {[%clk 0:00:39]} 41. axb4 {[%clk 0:00:18]}  Rd4+ {[%clk 0:00:35]} 42. Kc6 {[%clk 0:00:18]}  Kf6 {[%clk 0:00:30]} 43. Ra8 {[%clk 0:00:17]}  Rxb4 {[%clk 0:00:30]} 44. Rxa7 {[%clk 0:00:17]}  Rb3 {[%clk 0:00:31]} 45. Kxb6 {[%clk 0:00:16]}  Rxg3 {[%clk 0:00:31]} 46. h4 {[%clk 0:00:16]}  Rg4 {[%clk 0:00:31]} 47. Ra4 {[%clk 0:00:16]}  Rxh4 {[%clk 0:00:30]} 48. Ka5 {[%clk 0:00:17]}  Rh1 {[%clk 0:00:30]} 49. b6 {[%clk 0:00:17]}  Rb1 {[%clk 0:00:24]} 50. Rb4 {[%clk 0:00:18]}  Ra1+ {[%clk 0:00:25]} 51. Kb5 {[%clk 0:00:18]}  Ra8 {[%clk 0:00:24]} 52. Kc6 {[%clk 0:00:18]}  h4 {[%clk 0:00:20]} 53. Kc7 {[%clk 0:00:18]}  g5 {[%clk 0:00:19]} 54. fxg5+ {[%clk 0:00:17]}  Kxg5 {[%clk 0:00:20]} 55. Rd4 {[%clk 0:00:17]}  h3 {[%clk 0:00:16]} 56. Rd8 {[%clk 0:00:15]}  Ra6 {[%clk 0:00:16]} 57. Rg8+ {[%clk 0:00:13]}  Kf4 {[%clk 0:00:16]} 58. Rh8 {[%clk 0:00:14]}  Kg3 {[%clk 0:00:15]} 59. Rg8+ {[%clk 0:00:14]}  Kh2 {[%clk 0:00:16]} 60. Re8 {[%clk 0:00:15]}  f4 {[%clk 0:00:16]} 61. Rxe6 {[%clk 0:00:15]}  f3 {[%clk 0:00:16]} 62. Rf6 {[%clk 0:00:15]}  Kg2 {[%clk 0:00:16]} 63. Rg6+ {[%clk 0:00:14]}  Kf1 {[%clk 0:00:16]} 64. Kc8 {[%clk 0:00:15]}  h2 {[%clk 0:00:15]} 65. b7 {[%clk 0:00:15]}  Rxg6 {[%clk 0:00:16]} 0-1


[Site "https://www.chess.com"]

[Event "Titled Tuesday Blitz April 12 Early 2022"]
[White "Lashkin, Jegor"]
[Black "Manukyan, Artyom"]
[WhiteFideId "13907808"]
[BlackFideId "13305786"]
[WhiteElo "2368"]
[BlackElo "2034"]
[Result "1-0"]
[Round "03"]
[TimeControl "180+1"]
[Date "2022.04.12"]
[WhiteClock "0:00:12"]
[BlackClock "0:00:07"]

1. Nf3 {[%clk 0:03:00]}  d5 {[%clk 0:02:57]} 2. e3 {[%clk 0:03:00]}  Nf6 {[%clk 0:02:53]} 3. b3 {[%clk 0:03:00]}  e6 {[%clk 0:02:45]} 4. Bb2 {[%clk 0:03:00]}  Be7 {[%clk 0:02:46]} 5. d4 {[%clk 0:03:00]}  O-O {[%clk 0:02:45]} 6. Bd3 {[%clk 0:03:01]}  b6 {[%clk 0:02:44]} 7. O-O {[%clk 0:03:01]}  Bb7 {[%clk 0:02:43]} 8. Nbd2 {[%clk 0:02:59]}  c5 {[%clk 0:02:44]} 9. dxc5 {[%clk 0:02:58]}  bxc5 {[%clk 0:02:43]} 10. c4 {[%clk 0:02:57]}  Nc6 {[%clk 0:02:42]} 11. a3 {[%clk 0:02:54]}  d4 {[%clk 0:02:39]} 12. exd4 {[%clk 0:02:54]}  Nxd4 {[%clk 0:02:40]} 13. Nxd4 {[%clk 0:02:54]}  cxd4 {[%clk 0:02:41]} 14. Nf3 {[%clk 0:02:40]}  Qc7 {[%clk 0:02:29]} 15. Nxd4 {[%clk 0:02:09]}  Rfd8 {[%clk 0:02:27]} 16. Qe2 {[%clk 0:02:09]}  Qb6 {[%clk 0:02:20]} 17. Rad1 {[%clk 0:01:59]}  a6 {[%clk 0:02:01]} 18. b4 {[%clk 0:01:56]}  Rd7 {[%clk 0:01:50]} 19. c5 {[%clk 0:01:50]}  Qc7 {[%clk 0:01:50]} 20. c6 {[%clk 0:01:47]}  Bxc6 {[%clk 0:01:47]} 21. Nxc6 {[%clk 0:01:47]}  Qxc6 {[%clk 0:01:44]} 22. Bxf6 {[%clk 0:01:47]}  Bxf6 {[%clk 0:01:32]} 23. Be4 {[%clk 0:01:47]}  Rd5 {[%clk 0:01:33]} 24. Bxd5 {[%clk 0:01:45]}  exd5 {[%clk 0:01:33]} 25. Qf3 {[%clk 0:01:41]}  Rd8 {[%clk 0:01:32]} 26. Rfe1 {[%clk 0:01:27]}  h6 {[%clk 0:01:26]} 27. Rd3 {[%clk 0:01:12]}  Qc4 {[%clk 0:01:23]} 28. g3 {[%clk 0:01:01]}  d4 {[%clk 0:01:22]} 29. Kg2 {[%clk 0:01:01]}  Rc8 {[%clk 0:01:01]} 30. h4 {[%clk 0:01:00]}  Qb5 {[%clk 0:00:53]} 31. Qe4 {[%clk 0:00:54]}  h5 {[%clk 0:00:44]} 32. Rf3 {[%clk 0:00:53]}  Qc6 {[%clk 0:00:39]} 33. Qxc6 {[%clk 0:00:51]}  Rxc6 {[%clk 0:00:40]} 34. Re8+ {[%clk 0:00:39]}  Kh7 {[%clk 0:00:40]} 35. Rd3 {[%clk 0:00:28]}  Kg6 {[%clk 0:00:36]} 36. Kf3 {[%clk 0:00:22]}  Kf5 {[%clk 0:00:30]} 37. Re4 {[%clk 0:00:22]}  Rc2 {[%clk 0:00:28]} 38. Re8 {[%clk 0:00:18]}  Rc6 {[%clk 0:00:25]} 39. Ke2 {[%clk 0:00:17]}  Rc2+ {[%clk 0:00:22]} 40. Ke1 {[%clk 0:00:17]}  Rc1+ {[%clk 0:00:18]} 41. Kd2 {[%clk 0:00:17]}  Ra1 {[%clk 0:00:18]} 42. Ke2 {[%clk 0:00:14]}  Ra2+ {[%clk 0:00:12]} 43. Kf3 {[%clk 0:00:14]}  Rc2 {[%clk 0:00:13]} 44. Ra8 {[%clk 0:00:14]}  Rc6 {[%clk 0:00:13]} 45. a4 {[%clk 0:00:14]}  Rb6 {[%clk 0:00:13]} 46. Rb3 {[%clk 0:00:14]}  Ke5 {[%clk 0:00:11]} 47. a5 {[%clk 0:00:12]}  Rd6 {[%clk 0:00:07]} 48. b5 {[%clk 0:00:11]}  axb5 {[%clk 0:00:07]} 49. Rxb5+ {[%clk 0:00:12]}  Ke6 {[%clk 0:00:08]} 50. Rb6 {[%clk 0:00:10]}  Kd7 {[%clk 0:00:03]} 51. Ra7+ {[%clk 0:00:09]}  Ke6 {[%clk 0:00:02]} 52. Rxd6+ {[%clk 0:00:09]}  Kxd6 {[%clk 0:00:03]} 53. Rxf7 {[%clk 0:00:09]}  Kc6 {[%clk 0:00:04]} 54. Rxf6+ {[%clk 0:00:09]}  gxf6 {[%clk 0:00:04]} 55. Ke4 {[%clk 0:00:09]}  Kb5 {[%clk 0:00:04]} 56. Kxd4 {[%clk 0:00:10]}  Kxa5 {[%clk 0:00:05]} 57. Ke4 {[%clk 0:00:10]}  Kb6 {[%clk 0:00:06]} 58. Kf5 {[%clk 0:00:11]}  Kc6 {[%clk 0:00:07]} 59. Kxf6 {[%clk 0:00:12]} 1-0


[Site "https://www.chess.com"]

[Event "Titled Tuesday Blitz April 12 Early 2022"]
[White "Le, Tuan Minh"]
[Black "Zakhartsov, Vladimir"]
[WhiteFideId "12401153"]
[BlackFideId "4145097"]
[WhiteElo "2450"]
[BlackElo "2491"]
[Result "1-0"]
[Round "03"]
[TimeControl "180+1"]
[Date "2022.04.12"]
[WhiteClock "0:00:11"]
[BlackClock "0:00:01"]

1. d4 {[%clk 0:03:00]}  Nf6 {[%clk 0:02:59]} 2. Nf3 {[%clk 0:03:01]}  e6 {[%clk 0:02:58]} 3. Bf4 {[%clk 0:03:01]}  c5 {[%clk 0:02:57]} 4. c3 {[%clk 0:03:01]}  cxd4 {[%clk 0:02:57]} 5. cxd4 {[%clk 0:03:02]}  d5 {[%clk 0:02:55]} 6. Nc3 {[%clk 0:03:01]}  a6 {[%clk 0:02:52]} 7. e3 {[%clk 0:03:00]}  Be7 {[%clk 0:02:51]} 8. Bd3 {[%clk 0:03:00]}  O-O {[%clk 0:02:51]} 9. Ne5 {[%clk 0:03:00]}  b5 {[%clk 0:02:50]} 10. Qf3 {[%clk 0:02:58]}  Bb7 {[%clk 0:02:47]} 11. Qh3 {[%clk 0:02:43]}  Nbd7 {[%clk 0:02:42]} 12. O-O {[%clk 0:02:41]}  g6 {[%clk 0:02:35]} 13. Rac1 {[%clk 0:02:32]}  Nxe5 {[%clk 0:02:34]} 14. Bxe5 {[%clk 0:02:31]}  Nd7 {[%clk 0:02:27]} 15. Bf4 {[%clk 0:02:29]}  Rc8 {[%clk 0:02:24]} 16. Qg3 {[%clk 0:01:32]}  Re8 {[%clk 0:01:45]} 17. h3 {[%clk 0:01:12]}  Bh4 {[%clk 0:01:41]} 18. Qg4 {[%clk 0:01:10]}  Bf6 {[%clk 0:01:39]} 19. Ne2 {[%clk 0:01:07]}  Qa5 {[%clk 0:01:29]} 20. Bb1 {[%clk 0:00:58]}  Qd2 {[%clk 0:01:17]} 21. b3 {[%clk 0:00:48]}  Rxc1 {[%clk 0:01:05]} 22. Nxc1 {[%clk 0:00:49]}  Rc8 {[%clk 0:01:05]} 23. Nd3 {[%clk 0:00:49]}  Bg7 {[%clk 0:00:53]} 24. Qf3 {[%clk 0:00:42]}  a5 {[%clk 0:00:30]} 25. h4 {[%clk 0:00:37]}  b4 {[%clk 0:00:26]} 26. Rd1 {[%clk 0:00:35]}  Qc3 {[%clk 0:00:27]} 27. h5 {[%clk 0:00:35]}  Ba6 {[%clk 0:00:24]} 28. hxg6 {[%clk 0:00:35]}  hxg6 {[%clk 0:00:25]} 29. g4 {[%clk 0:00:23]}  Nf6 {[%clk 0:00:21]} 30. Kg2 {[%clk 0:00:22]}  Bxd3 {[%clk 0:00:18]} 31. Bxd3 {[%clk 0:00:22]}  Qb2 {[%clk 0:00:18]} 32. Bg5 {[%clk 0:00:20]}  Nh7 {[%clk 0:00:18]} 33. Bf4 {[%clk 0:00:16]}  Qxa2 {[%clk 0:00:17]} 34. Rh1 {[%clk 0:00:16]}  Qxb3 {[%clk 0:00:16]} 35. Qh3 {[%clk 0:00:16]}  Qxd3 {[%clk 0:00:13]} 36. Qxh7+ {[%clk 0:00:16]}  Kf8 {[%clk 0:00:13]} 37. Bd6+ {[%clk 0:00:16]}  Ke8 {[%clk 0:00:12]} 38. Qxg7 {[%clk 0:00:17]}  Qe4+ {[%clk 0:00:10]} 39. f3 {[%clk 0:00:17]}  Rc2+ {[%clk 0:00:04]} 40. Kg3 {[%clk 0:00:17]}  Qd3 {[%clk 0:00:03]} 41. Rh8+ {[%clk 0:00:12]}  Kd7 {[%clk 0:00:04]} 42. Qxf7+ {[%clk 0:00:12]}  Kc6 {[%clk 0:00:05]} 43. Rc8+ {[%clk 0:00:11]}  Kb5 {[%clk 0:00:05]} 44. Qe8+ {[%clk 0:00:11]}  Kb6 {[%clk 0:00:01]} 45. Bc5+ {[%clk 0:00:11]}  Kb7 {[%clk 0:00:01]} 46. Qc6# {[%clk 0:00:11]} 1-0


[Site "https://www.chess.com"]